bitfinex-derivatives/quotes_BTCF0:USTF0_20250823
["timestamp","ask_amount","ask_price","bid_price","bid_amount"]
[1755913094665,3.97556634,116550.0,116540.0,0.607929]
[1755913095274,3.97156634,116550.0,116540.0,0.607929]
[1755913095467,3.97756634,116550.0,116540.0,0.607929]
[1755913097176,3.97756634,116550.0,116540.0,0.488949]
[1755913097378,4.25890048,116550.0,116540.0,0.607929]
[1755913097577,3.97756634,116550.0,116540.0,0.607929]
[1755913098074,0.319382,116530.0,116520.0,0.20049594]
[1755913098274,2.76469028,116530.0,116520.0,0.46382545]
[1755913098476,2.76469028,116530.0,116520.0,0.35583951]
[1755913099078,2.76469028,116530.0,116520.0,0.34242]
[1755913099774,0.6626369,116510.0,116500.0,0.09823774]
[1755913099973,0.6626587,116490.0,116480.0,0.19409]
[1755913100274,2.76467998,116490.0,116480.0,0.6523891]
[1755913100473,2.76467998,116490.0,116480.0,0.56651]
[1755913100976,2.76467998,116490.0,116480.0,0.56571]
[1755913101474,2.7763557,116490.0,116480.0,0.56571]
[1755913101666,3.05768984,116490.0,116480.0,0.44673]
[1755913101861,0.22026,116460.0,116450.0,0.3165511]
[1755913102069,2.04734208,116460.0,116450.0,0.56571]
[1755913102375,1.99818164,116460.0,116450.0,0.56571]
[1755913103471,2.00018164,116460.0,116450.0,0.56571]
[1755913103972,2.00118164,116460.0,116450.0,0.56571]
[1755913104468,2.00018164,116460.0,116450.0,0.56571]
[1755913104668,2.00118164,116460.0,116450.0,0.56571]
[1755913107771,0.2339813,116450.0,116440.0,0.58764292]
[1755913107966,1.31649914,116450.0,116440.0,0.45252015]
[1755913108270,2.94881914,116450.0,116440.0,0.45252015]
[1755913109569,2.94981914,116450.0,116440.0,0.36960015]
[1755913110080,2.6376613,116450.0,116440.0,0.36960015]
[1755913110378,2.95081914,116450.0,116440.0,0.36960015]
[1755913110672,3.26397698,116450.0,116440.0,0.01342723]
[1755913111078,2.95281914,116450.0,116440.0,0.01342723]
[1755913111274,3.51677698,116450.0,116440.0,0.01342723]
[1755913111576,3.51677698,116450.0,116420.0,0.43903]
[1755913111577,0.642556,116430.0,116420.0,0.43903]
[1755913111780,1.821156,116430.0,116420.0,0.58758]
[1755913111982,2.13431384,116430.0,116420.0,0.58758]
[1755913112176,2.13431384,116430.0,116420.0,0.43903]
[1755913112484,1.17803,116430.0,116420.0,0.9235034]
[1755913112675,1.53983,116430.0,116420.0,0.9235034]
[1755913112875,1.99412,116450.0,116440.0,0.2911487]
[1755913113188,2.45008,116450.0,116440.0,0.6734887]
[1755913113371,3.45665784,116450.0,116440.0,0.6734887]
[1755913114076,3.54255914,116450.0,116440.0,0.6734887]
[1755913114383,3.54255914,116450.0,116440.0,1.2850887]
[1755913114384,1.63632,116450.0,116440.0,1.2850887]
[1755913114680,2.45412,116450.0,116440.0,1.2850887]
[1755913115380,0.3608,116460.0,116440.0,1.68412399]
[1755913115578,0.3608,116460.0,116450.0,0.6734813]
[1755913115884,1.17856,116460.0,116450.0,0.6734813]
[1755913116984,1.18656,116460.0,116450.0,0.6734813]
[1755913117885,1.39875,116460.0,116450.0,0.6734813]
[1755913118781,1.51233,116460.0,116450.0,0.6734813]
[1755913119085,1.99417174,116460.0,116450.0,0.6734813]
[1755913120385,1.17641174,116460.0,116450.0,0.6734813]
[1755913120685,1.99413174,116460.0,116450.0,0.6734813]
[1755913120884,1.99413174,116460.0,116450.0,0.4026113]
[1755913121083,2.35493174,116460.0,116450.0,0.0859013]
[1755913121280,0.6425413,116450.0,116440.0,0.673482]
[1755913121479,1.31649914,116450.0,116440.0,0.673482]
[1755913123083,1.31849914,116450.0,116440.0,0.674482]
[1755913123286,1.32049914,116450.0,116440.0,0.674482]
[1755913123781,1.32049914,116450.0,116440.0,0.403612]
[1755913123987,1.32049914,116450.0,116440.0,0.525932]
[1755913125482,1.23459784,116450.0,116440.0,0.674482]
[1755913125777,1.54275,116450.0,116440.0,0.674482]
[1755913125974,0.004,116450.0,116440.0,1.32431729]
[1755913126193,0.8216,116450.0,116440.0,1.32431729]
[1755913126388,0.8216,116450.0,116440.0,1.37195945]
[1755913130788,0.8216,116450.0,116440.0,1.44908273]
[1755913131289,0.89754,116450.0,116440.0,1.44908273]
[1755913132690,1.37824,116450.0,116440.0,1.44828273]
[1755913132891,1.37824,116450.0,116440.0,1.19828273]
[1755913132892,1.69139784,116450.0,116440.0,1.19828273]
[1755913133691,1.69139784,116450.0,116440.0,0.83748273]
[1755913133886,2.05219784,116450.0,116440.0,0.68893273]
[1755913134189,2.05219784,116450.0,116440.0,0.61180945]
[1755913134581,1.37824,116450.0,116440.0,0.61180945]
[1755913134781,1.69139784,116450.0,116440.0,0.68893273]
[1755913135282,1.69139784,116450.0,116440.0,0.83748273]
[1755913135686,1.37824,116450.0,116440.0,0.83748273]
[1755913135886,1.73904,116450.0,116440.0,0.83748273]
[1755913136092,2.38809924,116450.0,116440.0,0.320692]
[1755913136285,2.38809924,116450.0,116440.0,0.224662]
[1755913136484,2.38809924,116450.0,116440.0,0.30178528]
[1755913136694,2.38809924,116450.0,116440.0,0.16402528]
[1755913136893,2.38809924,116450.0,116440.0,0.086902]
[1755913137091,2.38889924,116450.0,116440.0,0.086902]
[1755913137486,2.38889924,116450.0,116440.0,0.16402528]
[1755913137685,0.44706,116450.0,116440.0,0.73451528]
[1755913137887,0.36427,116450.0,116440.0,1.74435057]
[1755913138190,1.09146,116450.0,116440.0,1.66722729]
[1755913138394,1.20632,116450.0,116440.0,1.66722729]
[1755913138595,1.20632,116450.0,116440.0,1.35406945]
[1755913138792,1.28962,116450.0,116440.0,1.35406945]
[1755913138990,1.28962,116450.0,116440.0,1.10406945]
[1755913139495,1.28962,116450.0,116440.0,1.21127981]
[1755913140295,1.28962,116450.0,116440.0,1.10406945]
[1755913142194,1.28962,116450.0,116440.0,1.41722729]
[1755913142392,1.28962,116450.0,116440.0,1.52443765]
[1755913142698,1.38107,116450.0,116440.0,1.52443765]
[1755913143796,1.0913,116450.0,116440.0,1.52443765]
[1755913143988,1.28946,116450.0,116440.0,1.21127981]
[1755913144395,1.28946,116450.0,116440.0,0.85047981]
[1755913144592,1.28946,116450.0,116440.0,0.59671981]
[1755913144793,1.68851974,116450.0,116440.0,0.19411236]
[1755913145000,2.29931974,116450.0,116440.0,0.19411236]
[1755913145884,2.29931974,116450.0,116440.0,0.16413131]
[1755913146089,1.9861619,116450.0,116440.0,0.16413131]
[1755913146592,2.30011974,116450.0,116440.0,0.16413131]
[1755913146799,2.30011974,116450.0,116440.0,0.19411236]
[1755913146999,2.30011974,116450.0,116440.0,0.27133642]
[1755913147295,2.30011974,116450.0,116440.0,0.16412606]
[1755913147599,2.30011974,116450.0,116440.0,0.07822406]
[1755913147989,0.6602493,116440.0,116430.0,0.0859108]
[1755913148298,1.33420714,116440.0,116430.0,0.0859108]
[1755913149105,1.33420714,116440.0,116430.0,0.0869108]
[1755913149294,1.33520714,116440.0,116430.0,0.0869108]
[1755913150601,1.33620714,116440.0,116430.0,0.0869108]
[1755913151397,1.34462463,116440.0,116430.0,0.0869108]
[1755913152102,1.34462463,116440.0,116420.0,0.15514906]
[1755913152103,0.14686,116430.0,116420.0,0.15514896]
[1755913152302,2.06517784,116430.0,116420.0,0.15514896]
[1755913152604,2.15109414,116430.0,116420.0,0.15514896]
[1755913152902,2.15109414,116430.0,116420.0,0.26235932]
[1755913153203,2.15209414,116430.0,116420.0,0.15514896]
[1755913153597,2.15309414,116430.0,116420.0,0.15514896]
[1755913154804,2.15309414,116430.0,116420.0,0.22907896]
[1755913157006,2.15309414,116430.0,116420.0,0.30615165]
[1755913157607,2.15309414,116430.0,116420.0,0.23222165]
[1755913158906,2.15309414,116430.0,116420.0,0.15514896]
[1755913159099,2.15309414,116430.0,116420.0,0.23220778]
[1755913159511,2.15309414,116430.0,116420.0,0.14628418]
[1755913159702,2.15309414,116430.0,116420.0,0.23220788]
[1755913160308,0.42904,116410.0,116400.0,0.64680576]
[1755913160512,1.24576,116410.0,116400.0,0.6824954]
[1755913160803,1.1983,116410.0,116400.0,1.12705947]
[1755913161106,0.29836,116420.0,116410.0,0.655591]
[1755913161506,0.0843,116430.0,116410.0,1.58034884]
[1755913161806,0.29836,116430.0,116420.0,0.76343225]
[1755913162102,1.11496,116430.0,116420.0,1.12423225]
[1755913162507,1.11496,116430.0,116420.0,1.21013183]
[1755913162806,1.11496,116430.0,116420.0,1.27765949]
[1755913163006,1.11596,116430.0,116420.0,1.27765949]
[1755913163212,0.001,116430.0,116420.0,1.52845949]
[1755913163402,1.71618,116450.0,116440.0,0.09544]
[1755913163606,2.69878,116450.0,116440.0,0.56966]
[1755913164209,2.69878,116450.0,116440.0,0.93046]
[1755913164804,2.70378,116450.0,116440.0,0.93146]
[1755913165007,2.70378,116450.0,116440.0,1.03931065]
[1755913165305,2.70378,116450.0,116440.0,1.12521955]
[1755913165505,1.05168,116450.0,116440.0,1.12521955]
[1755913165703,1.05168,116450.0,116440.0,1.461097]
[1755913166103,1.0709,116450.0,116440.0,1.461097]
[1755913167812,1.0709,116450.0,116440.0,1.100297]
[1755913168002,1.0709,116450.0,116440.0,1.461097]
[1755913168899,1.46995944,116450.0,116440.0,0.5788289]
[1755913169111,1.38405784,116450.0,116440.0,0.4477089]
[1755913169606,1.71995944,116450.0,116440.0,0.4477089]
[1755913170003,1.71995944,116450.0,116440.0,0.55555955]
[1755913170004,1.46995944,116450.0,116440.0,0.55555955]
[1755913170207,1.38405784,116450.0,116440.0,0.55555955]
[1755913170607,1.74485784,116450.0,116440.0,0.19475955]
[1755913170801,1.74485784,116450.0,116440.0,0.1589689]
[1755913171112,1.83075944,116450.0,116440.0,0.1589689]
[1755913171406,1.74485784,116450.0,116440.0,0.1589689]
[1755913172811,1.0709,116450.0,116440.0,0.6524189]
[1755913173009,1.0709,116450.0,116440.0,0.846147]
[1755913175015,1.0709,116450.0,116440.0,0.73829635]
[1755913176114,1.0709,116450.0,116440.0,0.60176635]
[1755913177113,1.0709,116450.0,116440.0,0.48577635]
[1755913177315,1.83075944,116450.0,116440.0,0.2155289]
[1755913177510,1.83075944,116450.0,116440.0,0.0869089]
[1755913178119,1.83075944,116450.0,116440.0,0.19475955]
[1755913178309,0.268899,116440.0,116430.0,0.0859108]
[1755913178616,0.81326684,116440.0,116430.0,0.0859108]
[1755913178921,0.500109,116440.0,116430.0,0.0859108]
[1755913179118,0.81326684,116440.0,116430.0,0.0859108]
[1755913179919,0.81626684,116440.0,116430.0,0.0869108]
[1755913182520,0.73035784,116440.0,116430.0,0.0869108]
[1755913182819,1.09115784,116440.0,116430.0,0.0869108]
[1755913183219,0.778,116440.0,116430.0,0.5627308]
[1755913183417,1.59376,116440.0,116430.0,0.6524208]
[1755913188826,1.6796689,116440.0,116430.0,0.6524208]
[1755913189017,1.59376,116440.0,116430.0,0.6524208]
[1755913189520,1.6796689,116440.0,116430.0,0.6524208]
[1755913189724,1.6796689,116440.0,116430.0,0.1589708]
[1755913189926,1.6796689,116440.0,116430.0,0.0869108]
[1755913190229,1.99282674,116440.0,116430.0,0.0869108]
[1755913190822,1.6796689,116440.0,116430.0,0.1589708]
[1755913191016,1.59376,116440.0,116430.0,0.3315208]
[1755913191324,1.59376,116440.0,116430.0,0.6524208]
[1755913192025,1.23296,116440.0,116430.0,0.6524208]
[1755913192626,1.23296,116440.0,116430.0,1.0132208]
[1755913193220,1.23296,116440.0,116430.0,0.6524208]
[1755913195729,1.23296,116440.0,116430.0,1.0132208]
[1755913196532,1.23296,116440.0,116430.0,1.12118995]
[1755913196932,1.23296,116440.0,116430.0,1.0132208]
[1755913197329,1.23296,116440.0,116430.0,1.12118995]
[1755913197529,0.8182,116440.0,116430.0,1.20707477]
[1755913197736,0.8182,116440.0,116430.0,1.41226346]
[1755913198047,0.87721,116440.0,116430.0,1.56578978]
[1755913198227,1.11724,116440.0,116430.0,1.25263194]
[1755913198526,1.11724,116440.0,116430.0,1.81658978]
[1755913198527,0.003,116440.0,116430.0,1.81658978]
[1755913198738,1.19911,116450.0,116440.0,0.6554887]
[1755913198921,1.19911,116450.0,116440.0,0.80993197]
[1755913199334,1.19911,116450.0,116440.0,1.73388981]
[1755913199635,0.97191,116450.0,116440.0,1.81977463]
[1755913200135,0.97391,116450.0,116440.0,1.56977463]
[1755913200540,0.8172,116450.0,116440.0,1.56977463]
[1755913201130,0.8172,116450.0,116440.0,1.25661679]
[1755913201333,0.8172,116450.0,116440.0,1.56977463]
[1755913201529,0.87621,116450.0,116440.0,1.56977463]
[1755913202030,0.06301,116450.0,116440.0,1.57077463]
[1755913202732,1.04228,116460.0,116450.0,0.3721919]
[1755913202932,0.18257,116470.0,116460.0,0.3121526]
[1755913203242,1.0565,116470.0,116460.0,1.0162726]
[1755913203428,1.0565,116470.0,116460.0,1.10215005]
[1755913203626,0.97159,116480.0,116470.0,0.6554671]
[1755913203825,1.05646,116480.0,116470.0,1.0162671]
[1755913204427,1.05646,116480.0,116470.0,1.1021298]
[1755913204833,1.05646,116480.0,116470.0,1.21001303]
[1755913205633,1.06046,116480.0,116470.0,1.21001303]
[1755913205830,1.20679,116480.0,116470.0,1.21101303]
[1755913206136,1.20279,116480.0,116470.0,1.1031298]
[1755913206334,1.20479,116480.0,116470.0,1.1041298]
[1755913206532,0.87989,116480.0,116470.0,1.1041298]
[1755913206728,0.006,116480.0,116470.0,1.41728764]
[1755913206924,0.81472,116490.0,116480.0,0.6554598]
[1755913207128,1.05626,116500.0,116490.0,0.6554524]
[1755913207336,1.05626,116500.0,116490.0,1.43708107]
[1755913207733,1.05626,116500.0,116490.0,1.5229364]
[1755913207930,1.05626,116500.0,116490.0,1.20977856]
[1755913208532,1.06126,116500.0,116490.0,1.10310773]
[1755913209439,1.06626,116500.0,116490.0,1.10410773]
[1755913210339,1.05826,116500.0,116490.0,1.10410773]
[1755913211040,1.05826,116500.0,116490.0,1.41726557]
[1755913211235,0.97339,116500.0,116490.0,1.41726557]
[1755913211739,0.15871,116500.0,116490.0,1.48585167]
[1755913211942,0.06101,116500.0,116490.0,1.48585167]
[1755913212141,0.002,116500.0,116490.0,1.48585167]
[1755913212941,0.002,116500.0,116490.0,1.5935225]
[1755913213441,0.002,116500.0,116490.0,1.48585167]
[1755913214343,0.06101,116500.0,116490.0,1.48585167]
[1755913216038,0.06101,116500.0,116490.0,1.17269383]
[1755913216540,0.06101,116500.0,116490.0,1.48585167]
[1755913218146,0.002,116500.0,116490.0,1.48585167]
[1755913220943,0.002,116500.0,116490.0,1.17269383]
[1755913221147,0.002,116500.0,116490.0,1.48585167]
[1755913221645,0.002,116500.0,116490.0,1.17269383]
[1755913221846,0.002,116500.0,116490.0,1.48585167]
[1755913223448,0.002,116500.0,116490.0,1.17269383]
[1755913223754,0.002,116500.0,116490.0,1.48585167]
[1755913226152,0.002,116500.0,116490.0,1.17269383]
[1755913226346,0.002,116500.0,116490.0,1.48585167]
[1755913226752,2.53155,116520.0,116510.0,0.22626]
[1755913226945,2.53155,116520.0,116510.0,0.6554386]
[1755913227146,1.05526,116520.0,116510.0,0.6554386]
[1755913227453,0.97039,116520.0,116510.0,1.10207919]
[1755913227944,1.05987,116520.0,116510.0,1.10307919]
[1755913228745,1.06187,116520.0,116510.0,1.10407919]
[1755913229445,1.06187,116520.0,116510.0,1.11251849]
[1755913229644,1.06187,116520.0,116510.0,1.10407919]
[1755913234252,0.06401,116520.0,116510.0,1.42586379]
[1755913234450,0.005,116520.0,116510.0,1.42586379]
[1755913234656,0.005,116520.0,116510.0,1.53353462]
[1755913235153,0.005,116520.0,116510.0,1.42586379]
[1755913236259,0.005,116520.0,116510.0,1.50295652]
[1755913236451,0.005,116520.0,116510.0,1.42586379]
[1755913236851,0.005,116520.0,116510.0,1.50299596]
[1755913237558,0.002,116520.0,116510.0,1.42486379]
[1755913238456,1.05006,116530.0,116520.0,0.2126217]
[1755913238759,1.05006,116530.0,116520.0,1.0870955]
[1755913239170,1.05006,116530.0,116520.0,1.17292135]
[1755913239962,1.05206,116530.0,116520.0,1.17392135]
[1755913240757,1.05406,116530.0,116520.0,1.17392135]
[1755913241657,1.05406,116530.0,116520.0,1.09678755]
[1755913242356,1.50999784,116530.0,116520.0,0.38369755]
[1755913242658,1.50999784,116530.0,116520.0,0.46083474]
[1755913242847,1.50999784,116530.0,116520.0,0.44028755]
[1755913243052,1.50999784,116530.0,116520.0,0.65217755]
[1755913243255,1.50999784,116530.0,116520.0,0.73598755]
[1755913243756,1.19684,116530.0,116520.0,0.73598755]
[1755913243953,1.19684,116530.0,116520.0,0.81312476]
[1755913249564,1.19684,116530.0,116520.0,0.73598755]
[1755913250862,1.19684,116530.0,116520.0,0.84365838]
[1755913252168,1.19684,116530.0,116520.0,0.73598755]
[1755913253367,1.19684,116530.0,116520.0,0.84365838]
[1755913254059,1.19684,116530.0,116520.0,0.73598755]
[1755913254466,1.19684,116530.0,116520.0,0.84365838]
[1755913254864,1.19684,116530.0,116520.0,0.73598755]
[1755913255371,1.19684,116530.0,116520.0,0.84365838]
[1755913258271,1.19684,116530.0,116520.0,0.73598755]
[1755913259963,1.19684,116530.0,116520.0,0.19499276]
[1755913259964,1.95664184,116530.0,116520.0,0.19499276]
[1755913260472,2.20664184,116530.0,116520.0,0.10914136]
[1755913261360,0.0858663,116500.0,116490.0,0.30889997]
[1755913261565,1.76799784,116500.0,116490.0,0.22302937]
[1755913261766,2.10386414,116500.0,116490.0,0.0685861]
[1755913261972,0.0858736,116490.0,116480.0,0.0858761]
[1755913262165,1.04239144,116490.0,116480.0,0.0858761]
[1755913262369,1.29239144,116490.0,116480.0,0.0858761]
[1755913262566,1.28839144,116490.0,116480.0,0.16298648]
[1755913262766,1.28639144,116490.0,116480.0,0.0858761]
[1755913263168,1.28739144,116490.0,116480.0,0.16792024]
[1755913263662,1.30846079,116490.0,116480.0,0.008]
[1755913263865,0.207741,116480.0,116470.0,0.16292684]
[1755913264077,1.83291884,116480.0,116470.0,0.16292684]
[1755913264369,2.08291884,116480.0,116470.0,0.0858827]
[1755913265373,2.08391884,116480.0,116470.0,0.0898827]
[1755913265879,2.08491884,116480.0,116470.0,0.0918827]
[1755913266374,2.08491884,116480.0,116470.0,0.16002024]
[1755913266572,1.68588,116480.0,116470.0,0.16002024]
[1755913266878,1.99903784,116480.0,116470.0,0.16002024]
[1755913267671,2.08491884,116480.0,116470.0,0.16002024]
[1755913271480,2.08491884,116480.0,116470.0,0.29728024]
[1755913272078,1.99903784,116480.0,116470.0,0.29728024]
[1755913272382,1.99903784,116480.0,116470.0,0.37473024]
[1755913273580,2.08491884,116480.0,116470.0,0.37473024]
[1755913274081,1.99903784,116480.0,116470.0,0.37473024]
[1755913275475,2.08491884,116480.0,116470.0,0.37473024]
[1755913276776,1.83491884,116480.0,116470.0,0.16002024]
[1755913276980,1.83491884,116480.0,116470.0,0.07413754]
[1755913280081,2.09851884,116480.0,116470.0,0.07413754]
[1755913283882,0.3320556,116460.0,116450.0,0.4399479]
[1755913284075,2.17749344,116460.0,116450.0,0.3573379]
[1755913284383,0.332063,116450.0,116440.0,0.6415142]
[1755913284582,1.00602084,116450.0,116440.0,0.6415142]
[1755913285184,1.0127953,116450.0,116440.0,0.6415142]
[1755913285385,1.00402084,116450.0,116440.0,0.71005416]
[1755913285681,1.01153269,116450.0,116440.0,0.71005416]
[1755913285883,1.00402084,116450.0,116440.0,0.71205416]
[1755913286778,1.00502084,116450.0,116440.0,0.71405416]
[1755913287686,0.691863,116450.0,116440.0,0.71405416]
[1755913287987,1.00502084,116450.0,116440.0,0.71405416]
[1755913288688,0.691863,116450.0,116440.0,0.71405416]
[1755913288889,1.00502084,116450.0,116440.0,0.71405416]
[1755913291190,1.00502084,116450.0,116440.0,0.52797416]
[1755913291379,1.00502084,116450.0,116440.0,0.42996416]
[1755913293390,1.00502084,116450.0,116440.0,0.71940416]
[1755913294579,0.92211784,116450.0,116440.0,0.71940416]
[1755913294779,1.18571784,116450.0,116440.0,0.71940416]
[1755913295485,0.1015751,116420.0,116410.0,0.07704414]
[1755913295690,0.0859324,116410.0,116400.0,0.026899]
[1755913295883,0.0859472,116390.0,116380.0,0.26989]
[1755913296185,1.93086504,116390.0,116380.0,0.26989]
[1755913297178,1.93086504,116390.0,116380.0,0.37956]
[1755913297383,1.93086504,116390.0,116380.0,0.55933]
[1755913297584,1.93093853,116390.0,116380.0,0.55933]
[1755913297777,1.93086504,116390.0,116380.0,0.55933]
[1755913297978,1.93094374,116390.0,116380.0,0.55933]
[1755913298178,1.93092757,116390.0,116380.0,0.55933]
[1755913298488,1.93086504,116390.0,116380.0,0.55933]
[1755913298892,1.93186504,116390.0,116380.0,0.55933]
[1755913299483,0.67495784,116390.0,116380.0,0.6460843]
[1755913299678,1.1720387,116390.0,116380.0,0.6460843]
[1755913299885,1.57106474,116390.0,116380.0,0.44966]
[1755913300182,1.93486474,116390.0,116380.0,0.4747]
[1755913300390,0.086769,116360.0,116330.0,0.49819]
[1755913300689,1.03475784,116340.0,116330.0,0.44966]
[1755913300985,0.75994164,116340.0,116330.0,0.55933]
[1755913301185,0.67395784,116340.0,116330.0,0.56013]
[1755913301392,0.38032219,116360.0,116350.0,0.55933]
[1755913301577,1.50356003,116360.0,116350.0,0.55933]
[1755913301777,1.50456003,116360.0,116350.0,0.55933]
[1755913302290,1.19140219,116360.0,116350.0,0.8961064]
[1755913302483,1.19148089,116360.0,116350.0,0.8961064]
[1755913302684,0.02060089,116360.0,116350.0,1.65600811]
[1755913302886,1.17096,116380.0,116370.0,0.3136016]
[1755913303098,1.48411784,116380.0,116370.0,0.6452916]
[1755913303392,0.03296,116360.0,116350.0,0.42194]
[1755913303585,1.60400694,116360.0,116350.0,0.42194]
[1755913303895,1.52403784,116360.0,116350.0,0.42194]
[1755913304090,1.52403784,116360.0,116350.0,0.55933]
[1755913304287,1.63060694,116360.0,116350.0,0.36503]
[1755913304491,1.62360694,116360.0,116350.0,0.36503]
[1755913304987,1.98440694,116360.0,116350.0,0.36503]
[1755913305192,1.98440694,116360.0,116350.0,0.4747]
[1755913305490,1.98540694,116360.0,116350.0,0.55933]
[1755913305793,1.96480694,116360.0,116350.0,0.55933]
[1755913306285,1.53272,116360.0,116350.0,0.6461066]
[1755913306487,0.81012,116370.0,116360.0,0.42683]
[1755913306787,0.8960818,116370.0,116360.0,0.55933]
[1755913306987,1.2568818,116370.0,116360.0,0.55933]
[1755913307385,1.57003964,116370.0,116360.0,0.55933]
[1755913307587,1.59763964,116370.0,116360.0,0.36503]
[1755913307886,1.59963964,116370.0,116360.0,0.26989]
[1755913308091,1.59963964,116370.0,116360.0,0.13739]
[1755913308687,1.2864818,116370.0,116360.0,0.13739]
[1755913308892,1.59963964,116370.0,116360.0,0.13739]
[1755913309190,1.59963964,116370.0,116360.0,0.6452992]
[1755913309191,0.3698,116370.0,116360.0,0.6452992]
[1755913309392,1.17988,116370.0,116360.0,0.6452992]
[1755913309594,1.17288,116370.0,116360.0,0.6452992]
[1755913309895,0.82808,116370.0,116360.0,0.6452992]
[1755913310086,0.82808,116370.0,116360.0,1.2560992]
[1755913311491,0.018,116370.0,116360.0,1.34283569]
[1755913311689,0.018,116370.0,116360.0,1.65599353]
[1755913312595,0.018,116370.0,116360.0,1.34283569]
[1755913312791,0.018,116370.0,116360.0,1.34203569]
[1755913313096,0.018,116370.0,116360.0,1.10950569]
[1755913313593,1.17076,116390.0,116380.0,0.4127544]
[1755913314198,1.17076,116390.0,116380.0,0.7735544]
[1755913314199,0.80996,116390.0,116380.0,0.7735544]
[1755913315195,0.4076,116400.0,116390.0,0.412747]
[1755913315399,1.17072,116400.0,116390.0,0.412747]
[1755913315596,0.80992,116400.0,116390.0,0.412747]
[1755913315799,0.80992,116400.0,116390.0,0.773547]
[1755913316699,0.81992,116400.0,116390.0,0.775547]
[1755913317501,0.81992,116400.0,116390.0,0.84544337]
[1755913318189,0.01,116400.0,116390.0,0.84544337]
[1755913318395,0.01,116400.0,116390.0,1.49451555]
[1755913318597,0.01907248,116420.0,116410.0,0.4112925]
[1755913319296,0.3788,116430.0,116420.0,0.0859251]
[1755913319501,0.86047,116440.0,116430.0,0.4112777]
[1755913320605,0.04921,116440.0,116430.0,0.4112777]
[1755913320804,0.86389,116440.0,116430.0,0.4122777]
[1755913321114,0.87139,116440.0,116430.0,0.4132777]
[1755913321404,0.86539,116440.0,116430.0,0.4122777]
[1755913321610,0.011,116440.0,116430.0,0.4132777]
[1755913321900,0.011,116440.0,116430.0,0.97643554]
[1755913322110,0.011,116440.0,116430.0,1.10996252]
[1755913322307,0.007,116440.0,116430.0,1.10896252]
[1755913323303,0.007,116440.0,116430.0,1.42212036]
[1755913323503,0.007,116440.0,116430.0,1.10896252]
[1755913324003,0.007,116440.0,116430.0,0.4122777]
[1755913324004,0.71366784,116440.0,116430.0,0.4122777]
[1755913324202,0.81757814,116440.0,116430.0,0.4122777]
[1755913324811,0.73166784,116440.0,116430.0,0.4122777]
[1755913325711,0.73166784,116440.0,116430.0,0.3284777]
[1755913326106,0.81636,116440.0,116430.0,0.4122777]
[1755913326303,0.007,116440.0,116430.0,0.4122777]
[1755913326506,0.007,116440.0,116430.0,0.74816252]
[1755913327709,0.007,116440.0,116430.0,1.10896252]
[1755913327908,0.007,116440.0,116430.0,0.74816252]
[1755913328211,0.007,116440.0,116430.0,0.85896252]
[1755913328510,0.05771,116440.0,116430.0,0.7730777]
[1755913328710,0.01091,116440.0,116430.0,0.7730777]
[1755913328903,0.007,116440.0,116430.0,0.7730777]
[1755913329804,0.01091,116440.0,116430.0,0.7730777]
[1755913330010,0.86687,116440.0,116430.0,0.4122777]
[1755913330204,0.9527802,116440.0,116430.0,0.4122777]
[1755913330406,1.36383009,116440.0,116430.0,0.32636]
[1755913330709,1.72463009,116440.0,116430.0,0.32636]
[1755913330911,1.72463009,116440.0,116430.0,0.4122776]
[1755913331109,1.22767,116440.0,116430.0,0.4122776]
[1755913332518,1.3135802,116440.0,116430.0,0.4122776]
[1755913332811,1.3135802,116440.0,116430.0,0.2168376]
[1755913333415,1.72463009,116440.0,116430.0,0.2168376]
[1755913333609,1.3135802,116440.0,116430.0,0.2168376]
[1755913334010,1.3135802,116440.0,116430.0,0.3284776]
[1755913334806,1.3135802,116440.0,116430.0,0.4122776]
[1755913336114,1.22767,116440.0,116430.0,0.4122776]
[1755913336310,1.22767,116440.0,116430.0,0.3284776]
[1755913336515,1.3135802,116440.0,116430.0,0.0869176]
[1755913337011,1.3135802,116440.0,116430.0,0.1574976]
[1755913337210,1.3135802,116440.0,116430.0,0.2168376]
[1755913337409,1.72463009,116440.0,116430.0,0.0869176]
[1755913337914,1.3135802,116440.0,116430.0,0.0869176]
[1755913338112,1.72463009,116440.0,116430.0,0.0869176]
[1755913338513,1.97463009,116440.0,116430.0,0.0869176]
[1755913338712,1.97463009,116440.0,116430.0,0.001]
[1755913339218,0.1340276,116430.0,116420.0,0.0859198]
[1755913339517,0.90587749,116430.0,116420.0,0.0859198]
[1755913340710,0.90787749,116430.0,116420.0,0.0869198]
[1755913341614,0.90987749,116430.0,116420.0,0.0869198]
[1755913343112,1.17936735,116430.0,116420.0,0.001]
[1755913343421,0.92936735,116430.0,116420.0,0.001]
[1755913345116,0.1314324,116410.0,116400.0,0.07659331]
[1755913345317,0.0455,116400.0,116390.0,0.48790041]
[1755913345620,0.4063,116400.0,116390.0,0.4113071]
[1755913345819,0.4922397,116400.0,116390.0,0.4113071]
[1755913346319,0.4912397,116400.0,116390.0,0.4113071]
[1755913346818,0.4053,116400.0,116390.0,0.4113071]
[1755913347013,0.4063,116400.0,116390.0,0.4133071]
[1755913347234,0.4922397,116400.0,116390.0,0.4133071]
[1755913347818,0.4063,116400.0,116390.0,0.4133071]
[1755913348129,0.4063,116400.0,116390.0,0.4143071]
[1755913350026,0.4922397,116400.0,116390.0,0.4143071]
[1755913351125,0.4063,116400.0,116390.0,0.4143071]
[1755913353830,0.4922395,116400.0,116390.0,0.4143071]
[1755913354327,0.80567812,116400.0,116390.0,0.4143071]
[1755913354526,0.4922395,116400.0,116390.0,0.4143071]
[1755913355232,0.80567812,116400.0,116390.0,0.4143071]
[1755913356826,0.80567812,116400.0,116390.0,0.48187955]
[1755913358531,0.4922395,116400.0,116390.0,0.48187955]
[1755913358738,0.80567812,116400.0,116390.0,0.48187955]
[1755913359135,0.4922395,116400.0,116390.0,0.48187955]
[1755913359339,0.80567812,116400.0,116390.0,0.48187955]
[1755913360534,0.82531379,116400.0,116390.0,0.13292]
[1755913361129,0.82531379,116400.0,116390.0,0.07358]
[1755913361731,0.82531379,116400.0,116390.0,0.3189271]
[1755913361732,0.82451379,116400.0,116390.0,0.3189271]
[1755913361933,0.82451379,116400.0,116390.0,0.4013371]
[1755913362232,0.51107517,116400.0,116390.0,0.4013371]
[1755913362633,1.23341567,116400.0,116390.0,0.4013371]
[1755913362941,1.21591567,116400.0,116390.0,0.4013371]
[1755913363236,1.21591567,116400.0,116390.0,0.47793041]
[1755913364038,1.23241567,116400.0,116390.0,0.4013371]